fUST/lending_fUST_20250126
["ID","MTS","AMOUNT","RATE_DAILY","PERIOD"]
[350385600,1737820831899,160.0,0.00022281,120]
[350385601,1737820891957,160.0,0.00023215,120]
[350385604,1737821211093,-300.0,0.00016436,2]
[350385605,1737821211120,-500.0,0.00016437,2]
[350385606,1737821211144,-500.0,0.00016437,2]
[350385607,1737821211168,-321.78000026,0.00016437,2]
[350385608,1737821211190,-192.89693223,0.00016437,2]
[350385609,1737821211214,-487.16356652,0.00016437,2]
[350385610,1737821211242,-500.0,0.00016437,2]
[350385611,1737821211268,-508.37999065,0.00016437,2]
[350385612,1737821211297,-500.0,0.00016437,2]
[350385613,1737821211319,-500.0,0.00016438,2]
[350385614,1737821211340,-500.0,0.00016438,2]
[350385615,1737821211361,-500.0,0.00016438,2]
[350385616,1737821211383,-500.0,0.00016438,2]
[350385617,1737821211404,-500.0,0.00016438,2]
[350385618,1737821211426,-500.0,0.00016438,2]
[350385619,1737821211446,-500.0,0.00016438,2]
[350385620,1737821211468,-500.0,0.00016438,2]
[350385621,1737821211490,-195.99017466,0.00016438,2]
[350385622,1737821211511,-448.7576124,0.00016438,2]
[350385623,1737821211539,-500.0,0.00016438,2]
[350385624,1737821211562,-500.0,0.00016438,2]
[350385625,1737821211584,-500.0,0.00016438,2]
[350385626,1737821211607,-500.0,0.00016438,2]
[350385627,1737821211629,-500.0,0.00016438,2]
[350385628,1737821211651,-187.082814,0.00016438,2]
[350385630,1737821427473,255.584728,0.00013973,2]
[350385677,1737821432182,-1005.87879029,0.00016338,2]
[350385678,1737821432192,-300.0,0.00016437,2]
[350385679,1737821432201,-412.01108078,0.00016438,2]
[350385680,1737821432210,-407.2305,0.00016438,14]
[350385681,1737821432220,-500.0,0.00016438,2]
[350385682,1737821432229,-500.0,0.00016438,2]
[350385683,1737821432239,-500.0,0.00016438,2]
[350385684,1737821432248,-500.0,0.00016438,2]
[350385685,1737821432257,-500.0,0.00016438,2]
[350385687,1737821432267,-500.0,0.00016438,2]
[350385689,1737821432276,-500.0,0.00016438,2]
[350385691,1737821432285,-500.0,0.00016438,2]
[350385692,1737821432295,-548.41407387,0.00016438,2]
[350385694,1737821432305,-500.0,0.00016438,2]
[350385696,1737821432314,-500.0,0.00016438,2]
[350385698,1737821432323,-500.0,0.00016438,2]
[350385701,1737821432333,-504.89239055,0.00016438,2]
[350385705,1737821432342,-500.0,0.00016438,2]
[350385708,1737821432351,-63.92739397,0.00016438,2]
[350385711,1737821432363,-436.07260603,0.00016438,2]
[350385713,1737821432373,-500.0,0.00016438,2]
[350385715,1737821432383,-500.0,0.00016438,2]
[350385717,1737821432393,-592.89,0.00016438,2]
[350385719,1737821432402,-500.0,0.00016438,2]
[350385721,1737821432412,-500.0,0.00016438,2]
[350385723,1737821432421,-1004.47444291,0.00016438,2]
[350385725,1737821432430,-500.0,0.00016438,2]
[350385727,1737821432440,-408.9715808,0.00016438,2]
[350385729,1737821432452,-91.2871192,0.00016438,2]
[350385731,1737821432461,-504.46739239,0.00016438,2]
[350385733,1737821432470,-503.52283972,0.00016438,2]
[350385736,1737821432482,-500.0,0.00016438,2]
[350385738,1737821432491,-512.04,0.00016438,2]
[350385740,1737821432500,-500.0,0.00016438,2]
[350385742,1737821432510,-500.0,0.00016438,2]
[350385744,1737821432519,-500.0,0.00016438,2]
[350385746,1737821432529,-500.0,0.00016438,2]
[350385748,1737821432537,-500.0,0.00016438,2]
[350385750,1737821432546,-252.29364869,0.00016438,2]
[350386165,1737821440201,-247.70635131,0.00016438,2]
[350386168,1737821440215,-520.91713838,0.00016438,2]
[350386170,1737821440227,-500.0,0.00016438,2]
[350386173,1737821440241,-500.0,0.00016438,2]
[350386175,1737821440255,-500.0,0.00016438,2]
[350386178,1737821440268,-500.0,0.00016438,2]
[350386180,1737821440280,-500.0,0.00016438,2]
[350386182,1737821440290,-535.21877951,0.00016438,2]
[350386184,1737821440303,-500.0,0.00016438,2]
[350386187,1737821440315,-459.41585617,0.00016438,2]
[350386189,1737821440327,-500.0,0.00016438,2]
[350386191,1737821440339,-500.0,0.00016438,2]
[350386194,1737821440351,-500.0,0.00016438,2]
[350386196,1737821440363,-402.12209217,0.00016438,2]
[350386500,1737821443200,-1043.66,0.00016438,2]
[350386503,1737821443211,-500.0,0.00016438,2]
[350386505,1737821443223,-500.0,0.00016438,2]
[350386507,1737821443235,-500.0,0.00016438,2]
[350386509,1737821443246,-500.0,0.00016438,2]
[350386511,1737821443257,-500.0,0.00016438,2]
[350386513,1737821443268,-500.0,0.00016438,2]
[350386516,1737821443278,-500.0,0.00016438,2]
[350386518,1737821443289,-500.0,0.00016438,2]
[350386520,1737821443301,-500.0,0.00016438,2]
[350386522,1737821443311,-500.0,0.00016438,2]
[350386524,1737821443322,-504.13,0.00016438,2]
[350386526,1737821443333,-500.0,0.00016438,2]
[350386529,1737821443344,-500.0,0.00016438,2]
[350386531,1737821443354,-500.0,0.00016438,2]
[350386533,1737821443364,-500.0,0.00016438,2]
[350386535,1737821443375,-503.65076693,0.00016438,2]
[350386537,1737821443386,-486.44250239,0.00016438,2]
[350386539,1737821443397,-500.0,0.00016438,2]
[350386542,1737821443408,-500.0,0.00016438,2]
[350386544,1737821443418,-500.0,0.00016438,2]
[350386546,1737821443430,-500.0,0.00016438,2]
[350386548,1737821443441,-500.0,0.00016438,2]
[350386550,1737821443451,-503.89275078,0.00016438,2]
[350386552,1737821443462,-500.0,0.00016438,2]
[350386554,1737821443472,-500.0,0.00016438,2]
[350386557,1737821443484,-503.65557835,0.00016438,2]
[350386559,1737821443495,-500.0,0.00016438,2]
[350386561,1737821443506,-500.0,0.00016438,2]
[350386563,1737821443517,-500.0,0.00016438,2]
[350386565,1737821443527,-500.0,0.00016438,2]
[350386567,1737821443538,-500.0,0.00016438,2]
[350386569,1737821443549,-500.0,0.00016438,2]
[350386572,1737821443560,-500.0,0.00016438,2]
[350386574,1737821443571,-500.0,0.00016438,2]
[350386576,1737821443583,-523.23,0.00016438,2]
[350386578,1737821443593,-500.0,0.00016438,2]
[350386580,1737821443608,-500.0,0.00016438,2]
[350386583,1737821443618,-500.0,0.00016438,2]
[350386585,1737821443629,-500.00000002,0.00016438,2]
[350386587,1737821443639,-500.0,0.00016438,2]
[350386589,1737821443650,-505.61254683,0.00016438,2]
[350386591,1737821443661,-1145.95,0.00016438,2]
[350386593,1737821443672,-500.0,0.00016438,2]
[350386596,1737821443683,-500.0,0.00016438,2]
[350386598,1737821443695,-500.0,0.00016438,2]
[350386600,1737821443707,-500.0,0.00016438,2]
[350386603,1737821443717,-500.0,0.00016438,2]
[350386606,1737821443728,-504.74543994,0.00016438,2]
[350386609,1737821443741,-500.0,0.00016438,2]
[350386612,1737821443751,-500.0,0.00016438,2]
[350386614,1737821443762,-500.0,0.00016438,2]
[350386616,1737821443773,-500.0,0.00016438,2]
[350386618,1737821443783,-624.82,0.00016438,2]
[350386620,1737821443794,-500.0,0.00016438,2]
[350386622,1737821443805,-500.0,0.00016438,2]
[350386624,1737821443817,-557.0,0.00016438,2]
[350386626,1737821443830,-500.0,0.00016438,2]
[350386629,1737821443842,-500.0,0.00016438,2]
[350386631,1737821443853,-500.0,0.00016438,2]
[350386633,1737821443863,-500.0,0.00016438,2]
[350386635,1737821443874,-500.0,0.00016438,2]
[350386637,1737821443885,-500.0,0.00016438,2]
[350386639,1737821443896,-500.0,0.00016438,2]
[350386641,1737821443907,-500.0,0.00016438,2]
[350386643,1737821443918,-500.0,0.00016438,2]
[350386646,1737821443929,-500.0,0.00016438,2]
[350386648,1737821443940,-500.0,0.00016438,2]
[350386650,1737821443950,-525.27279852,0.00016438,2]
[350386652,1737821443960,-500.0,0.00016438,2]
[350386654,1737821443971,-500.0,0.00016438,2]
[350386656,1737821443982,-540.05,0.00016438,2]
[350386659,1737821443994,-500.0,0.00016438,2]
[350386661,1737821444005,-500.0,0.00016438,2]
[350386663,1737821444015,-500.0,0.00016438,2]
[350386665,1737821444026,-501.57585974,0.00016438,2]
[350386667,1737821444037,-500.0,0.00016438,2]
[350386669,1737821444048,-500.0,0.00016438,2]
[350386671,1737821444059,-1176.7,0.00016438,2]
[350386673,1737821444069,-507.4,0.00016438,2]
[350386675,1737821444079,-500.0,0.00016438,2]
[350386677,1737821444088,-500.0,0.00016438,2]
[350386679,1737821444097,-500.0,0.00016438,2]
[350386702,1737821444296,-500.0,0.00016438,2]
[350386704,1737821444314,-500.0,0.00016438,2]
[350386706,1737821444324,-632.66,0.00016438,2]
[350386708,1737821444333,-509.86829733,0.00016438,2]
[350386710,1737821444343,-500.0,0.00016438,2]
[350386712,1737821444353,-160.19100295,0.00016438,2]
[350386714,1737821444362,-500.0,0.00016438,2]
[350386716,1737821444371,-500.0,0.00016438,2]
[350386718,1737821444380,-500.0,0.00016438,2]
[350386720,1737821444390,-500.0,0.00016438,2]
[350386722,1737821444400,-500.0,0.00016438,2]
[350386724,1737821444409,-500.0,0.00016438,2]
[350386726,1737821444419,-500.0,0.00016438,2]
[350386728,1737821444428,-500.0,0.00016438,2]
[350386730,1737821444437,-500.0,0.00016438,2]
[350386732,1737821444447,-500.0,0.00016438,2]
[350386734,1737821444456,-500.0,0.00016438,2]
[350386736,1737821444466,-258.92923461,0.00016438,2]
[350386738,1737821444475,-500.0,0.00016438,2]
[350386740,1737821444485,-500.0,0.00016438,2]
[350386742,1737821444494,-500.0,0.00016438,2]
[350386744,1737821444503,-1450.51,0.00016438,2]
[350386746,1737821444513,-310.10137333,0.00016438,2]
[350386748,1737821444522,-500.0,0.00016438,2]
[350386750,1737821444531,-500.0,0.00016438,2]
[350386752,1737821444541,-500.0,0.00016438,2]
[350386754,1737821444550,-500.0,0.00016438,2]
[350386756,1737821444559,-500.0,0.00016438,2]
[350386758,1737821444569,-500.0,0.00016438,2]
[350386760,1737821444578,-604.79939927,0.00016438,2]
[350386762,1737821444587,-500.0,0.00016438,2]
[350386764,1737821444596,-2903.73,0.00016438,2]
[350386766,1737821444608,-500.0,0.00016438,2]
[350386768,1737821444618,-500.0,0.00016438,2]
[350386770,1737821444628,-500.0,0.00016438,2]
[350386772,1737821444637,-500.0,0.00016438,2]
[350386774,1737821444647,-500.0,0.00016438,2]
[350386776,1737821444656,-500.0,0.00016438,2]
[350386778,1737821444666,-500.0,0.00016438,2]
[350386780,1737821444675,-500.0,0.00016438,2]
[350386782,1737821444685,-500.0,0.00016438,2]
[350386784,1737821444694,-500.0,0.00016438,2]
[350386786,1737821444703,-500.0,0.00016438,2]
[350386788,1737821444713,-500.0,0.00016438,2]
[350386790,1737821444723,-500.0,0.00016438,2]
[350386792,1737821444732,-500.0,0.00016438,2]
[350386794,1737821444742,-500.0,0.00016438,2]
[350386796,1737821444751,-500.0,0.00016438,2]
[350386798,1737821444761,-570.36,0.00016438,2]
[350386800,1737821444770,-500.0,0.00016438,2]
[350386802,1737821444779,-1223.23,0.00016438,2]
[350386804,1737821444789,-500.0,0.00016438,2]
[350386806,1737821444798,-500.0,0.00016438,2]
[350386808,1737821444808,-500.0,0.00016438,2]
[350386810,1737821444818,-500.0,0.00016438,2]
[350386812,1737821444827,-500.0,0.00016438,2]
[350386814,1737821444836,-710.51,0.00016438,2]
[350386816,1737821444846,-500.0,0.00016438,2]
[350386818,1737821444857,-440.29533724,0.00016438,2]
[350386820,1737821444867,-500.0,0.00016438,2]
[350386822,1737821444876,-500.0,0.00016438,2]
[350386824,1737821444886,-500.0,0.00016438,2]
[350386826,1737821444894,-500.0,0.00016438,2]
[350386828,1737821444903,-523.01,0.00016438,2]
[350386829,1737821444912,-500.0,0.00016438,2]
[350386831,1737821444922,-500.0,0.00016438,2]
[350386833,1737821444930,-500.0,0.00016438,2]
[350386835,1737821444939,-500.0,0.00016438,2]
[350386837,1737821444949,-6579.93,0.00016438,2]
[350386839,1737821444958,-500.0,0.00016438,2]
[350386840,1737821444968,-1391.0,0.00016438,2]
[350386841,1737821444977,-500.0,0.00016438,2]
[350386842,1737821444986,-1643.6,0.00016438,2]
[350386843,1737821444995,-500.0,0.00016438,2]
[350386844,1737821445004,-500.0,0.00016438,2]
[350386845,1737821445013,-500.0,0.00016438,2]
[350386846,1737821445023,-500.0,0.00016438,2]
[350386847,1737821445032,-691.57,0.00016438,2]
[350386848,1737821445041,-522.43,0.00016438,2]
[350386849,1737821445051,-500.0,0.00016438,2]
[350386850,1737821445060,-500.0,0.00016438,2]
[350386851,1737821445069,-500.0,0.00016438,2]
[350386852,1737821445078,-500.0,0.00016438,2]
[350386854,1737821445087,-500.0,0.00016438,2]
[350386856,1737821445096,-500.0,0.00016438,2]
[350386858,1737821445106,-500.0,0.00016438,2]
[350386860,1737821445115,-500.0,0.00016438,2]
[350386862,1737821445124,-500.0,0.00016438,2]
[350386864,1737821445134,-500.0,0.00016438,2]
[350386866,1737821445143,-394.21,0.00016438,2]
[350386868,1737821445152,-500.0,0.00016438,2]
[350386870,1737821445161,-1375.26,0.00016438,2]
[350386871,1737821445170,-569.11,0.00016438,2]
[350386873,1737821445180,-500.0,0.00016438,2]
[350386875,1737821445189,-601.61471006,0.00016438,2]
[350386877,1737821445199,-500.0,0.00016438,2]
[350386879,1737821445208,-2316.83,0.00016438,2]
[350386880,1737821445218,-575.38803646,0.00016438,2]
[350386881,1737821445227,-500.0,0.00016438,2]
[350386882,1737821445237,-22978.71,0.00016438,2]
[350386883,1737821445247,-500.0,0.00016438,2]
[350386885,1737821445257,-500.0,0.00016438,2]
[350386887,1737821445266,-457.21787566,0.00016438,2]
[350386888,1737821445275,-502.75365871,0.00016438,2]
[350386890,1737821445284,-1338.38,0.00016438,2]
[350386892,1737821445294,-500.0,0.00016438,2]
[350386893,1737821445303,-500.0,0.00016438,2]
[350386894,1737821445312,-500.0,0.00016438,2]
[350386895,1737821445322,-621.61,0.00016438,2]
[350386896,1737821445332,-500.0,0.00016438,2]
[350386897,1737821445341,-400.28797742,0.00016438,2]
[350386898,1737821445351,-500.0,0.00016438,2]
[350386899,1737821445360,-685.94,0.00016438,2]
[350386900,1737821445370,-1504.23,0.00016438,2]
[350386901,1737821445379,-500.0,0.00016438,2]
[350386902,1737821445389,-1190.45,0.00016438,2]
[350386903,1737821445398,-500.0,0.00016438,2]
[350386904,1737821445407,-874.06,0.00016438,2]
[350386905,1737821445417,-500.0,0.00016438,2]
[350386906,1737821445427,-500.0,0.00016438,2]
[350386907,1737821445437,-500.0,0.00016438,7]
[350386908,1737821445446,-584.63,0.00016438,2]
[350386909,1737821445457,-500.0,0.00016438,2]
[350386911,1737821445467,-720.74,0.00016438,2]
[350386912,1737821445476,-500.0,0.00016438,2]
[350386913,1737821445487,-500.0,0.00016438,2]
[350386914,1737821445496,-547.43,0.00016438,2]
[350386915,1737821445506,-500.0,0.00016438,2]
[350386917,1737821445516,-500.0,0.00016438,2]
[350386919,1737821445526,-500.0,0.00016438,2]
[350386921,1737821445536,-150.97027884,0.00016438,2]
[350386923,1737821445545,-500.0,0.00016438,2]
[350386925,1737821445555,-500.0,0.00016438,2]
[350386926,1737821445565,-503.6496915,0.00016438,2]
[350386928,1737821445575,-500.0,0.00016438,2]
[350386930,1737821445584,-500.0,0.00016438,2]
[350386931,1737821445594,-500.0,0.00016438,2]
[350386932,1737821445607,-500.0,0.00016438,2]
[350386933,1737821445617,-500.0,0.00016438,2]
[350386934,1737821445626,-500.0,0.00016438,2]
[350386935,1737821445636,-500.0,0.00016438,2]
[350386937,1737821445647,-500.0,0.00016438,2]
[350386940,1737821445656,-500.0,0.00016438,2]
[350386942,1737821445665,-827.49,0.00016438,2]
[350386944,1737821445675,-500.0,0.00016438,2]
[350386946,1737821445685,-792.59,0.00016438,2]
[350386948,1737821445696,-500.0,0.00016438,2]
[350386950,1737821445705,-1878.34,0.00016438,2]
[350386951,1737821445715,-7081.78,0.00016438,2]
[350386952,1737821445724,-500.0,0.00016438,2]
[350386953,1737821445734,-500.0,0.00016438,2]
[350386954,1737821445744,-632.14,0.00016438,2]
[350386955,1737821445753,-500.0,0.00016438,2]
[350386956,1737821445763,-10523.72,0.00016438,2]
[350386957,1737821445772,-500.0,0.00016438,2]
[350386958,1737821445782,-500.0,0.00016438,2]
[350386959,1737821445792,-500.0,0.00016438,2]
[350386960,1737821445801,-500.0,0.00016438,2]
[350386961,1737821445811,-500.0,0.00016438,2]
[350386962,1737821445820,-500.0,0.00016438,2]
[350386963,1737821445830,-987.8,0.00016438,2]
[350386964,1737821445839,-500.0,0.00016438,2]
[350386965,1737821445849,-500.0,0.00016438,2]
[350386966,1737821445858,-722.07,0.00016438,2]
[350386967,1737821445868,-500.0,0.00016438,2]
[350386968,1737821445877,-500.0,0.00016438,2]
[350386969,1737821445887,-597.87790783,0.00016438,2]
[350386970,1737821445897,-500.0,0.00016473,2]
[350386971,1737821445906,-471.57504892,0.00016574,2]
[350386972,1737821445915,-197.21620231,0.00016574,2]
[350386973,1737821445925,-9117.97653074,0.00016575,5]
[350386974,1737821445934,-319.15694317,0.00016575,5]
[350386975,1737821445944,-500.0,0.00016575,2]
[350386976,1737821445953,-500.0,0.00016575,2]
[350386977,1737821445962,-500.0,0.00016575,2]
[350386978,1737821445972,-500.0,0.00016575,2]
[350386979,1737821445982,-500.0,0.00016575,2]
[350386980,1737821445992,-500.0,0.00016575,2]
[350386981,1737821446002,-500.0,0.00016575,2]
[350386982,1737821446011,-409.05061874,0.00016575,2]
[350386984,1737821446020,-500.0,0.00016575,2]
[350386986,1737821446029,-500.0,0.00016575,2]
[350386988,1737821446039,-500.0,0.00016575,2]
[350386990,1737821446048,-500.0,0.00016575,2]
[350386993,1737821446057,-500.0,0.00016575,2]
[350386994,1737821446067,-500.0,0.00016575,2]
[350386997,1737821446076,-500.0,0.00016575,2]
[350386998,1737821446086,-592.89,0.00016575,2]
[350387001,1737821446096,-500.0,0.00016575,2]
[350387002,1737821446106,-500.0,0.00016575,2]
[350387004,1737821446115,-500.0,0.00016575,2]
[350387007,1737821446125,-297.46369107,0.00016575,2]
[350387009,1737821446134,-504.55395256,0.00016575,2]
[350387011,1737821446144,-512.04,0.00016575,2]
[350387013,1737821446153,-500.0,0.00016575,2]
[350387014,1737821446162,-500.0,0.00016575,2]
[350387017,1737821446171,-500.0,0.00016575,2]
[350387019,1737821446181,-500.0,0.00016575,2]
[350387021,1737821446191,-500.0,0.00016575,2]
[350387023,1737821446200,-506.95022981,0.00016575,2]
[350387024,1737821446210,-500.0,0.00016575,2]
[350387026,1737821446219,-500.0,0.00016575,2]
[350387029,1737821446229,-271.42458975,0.00016575,2]
[350387031,1737821446239,-500.0,0.00016575,2]
[350387034,1737821446249,-500.0,0.00016575,2]
[350387037,1737821446259,-500.0,0.00016575,2]
[350387039,1737821446267,-1043.66,0.00016575,2]
[350387041,1737821446277,-500.0,0.00016575,2]
[350387043,1737821446287,-500.0,0.00016575,2]
[350387045,1737821446296,-500.0,0.00016575,2]
[350387047,1737821446305,-500.0,0.00016575,2]
[350387049,1737821446315,-500.0,0.00016575,2]
[350387051,1737821446324,-500.0,0.00016575,2]
[350387053,1737821446333,-500.0,0.00016575,2]
[350387055,1737821446343,-500.0,0.00016575,2]
[350387057,1737821446351,-500.0,0.00016575,2]
[350387059,1737821446361,-504.13,0.00016575,2]
[350387061,1737821446371,-500.0,0.00016575,2]
[350387063,1737821446380,-500.0,0.00016575,2]
[350387065,1737821446389,-500.0,0.00016575,2]
[350387067,1737821446399,-248.25652742,0.00016575,2]
[350387069,1737821446409,-500.0,0.00016575,2]
[350387071,1737821446418,-500.0,0.00016575,2]
[350387073,1737821446428,-500.0,0.00016575,2]
[350387075,1737821446437,-500.0,0.00016575,2]
[350387077,1737821446447,-500.0,0.00016575,2]
[350387079,1737821446456,-500.0,0.00016575,2]
[350387081,1737821446465,-500.0,0.00016575,2]
[350387083,1737821446475,-500.0,0.00016575,2]
[350387085,1737821446485,-523.23,0.00016575,2]
[350387088,1737821446496,-500.0,0.00016575,2]
[350387089,1737821446505,-1145.95,0.00016575,2]
[350387091,1737821446515,-500.0,0.00016575,2]
[350387093,1737821446524,-500.0,0.00016575,2]
[350387095,1737821446534,-500.0,0.00016575,2]
[350387098,1737821446544,-500.0,0.00016575,2]
[350387100,1737821446553,-500.0,0.00016575,2]
[350387101,1737821446563,-506.96306323,0.00016575,2]
[350387103,1737821446572,-500.0,0.00016575,2]
[350387105,1737821446581,-624.82,0.00016575,2]
[350387107,1737821446590,-500.0,0.00016575,2]
[350387109,1737821446603,-557.0,0.00016575,2]
[350387111,1737821446612,-500.0,0.00016575,2]
[350387114,1737821446621,-500.0,0.00016575,2]
[350387116,1737821446631,-500.0,0.00016575,2]
[350387117,1737821446641,-500.0,0.00016575,2]
[350387119,1737821446651,-494.89,0.00016575,2]
[350387122,1737821446660,-500.0,0.00016575,2]
[350387124,1737821446670,-500.0,0.00016575,2]
[350387125,1737821446680,-500.0,0.00016575,2]
[350387127,1737821446691,-500.0,0.00016575,2]
[350387129,1737821446700,-500.0,0.00016575,2]
[350387131,1737821446709,-500.0,0.00016575,2]
[350387133,1737821446720,-500.0,0.00016575,2]
[350387135,1737821446730,-1176.7,0.00016575,2]
[350387137,1737821446739,-507.4,0.00016575,2]
[350387139,1737821446749,-500.0,0.00016575,2]
[350387141,1737821446759,-500.0,0.00016575,2]
[350387144,1737821446770,-500.0,0.00016575,2]
[350387145,1737821446779,-500.0,0.00016575,2]
[350387147,1737821446789,-632.66,0.00016575,2]
[350387149,1737821446798,-500.0,0.00016575,2]
[350387151,1737821446808,-500.0,0.00016575,2]
[350387153,1737821446817,-500.0,0.00016575,2]
[350387155,1737821446827,-500.0,0.00016575,2]
[350387158,1737821446839,-500.0,0.00016575,2]
[350387160,1737821446848,-500.0,0.00016575,2]
[350387162,1737821446858,-570.6875927,0.00016575,2]
[350387164,1737821446867,-1450.51,0.00016575,2]
[350387166,1737821446878,-500.0,0.00016575,2]
[350387168,1737821446887,-500.0,0.00016575,2]
[350387170,1737821446897,-500.0,0.00016575,2]
[350387172,1737821446907,-500.0,0.00016575,2]
[350387174,1737821446916,-500.0,0.00016575,2]
[350387176,1737821446926,-512.60241157,0.00016575,2]
[350387178,1737821446936,-500.0,0.00016575,2]
[350387180,1737821446945,-2903.73,0.00016575,2]
[350387182,1737821446955,-500.0,0.00016575,2]
[350387184,1737821446965,-500.0,0.00016575,2]
[350387186,1737821446975,-500.0,0.00016575,2]
[350387188,1737821446985,-500.0,0.00016575,2]
[350387190,1737821446995,-500.0,0.00016575,2]
[350387192,1737821447004,-500.0,0.00016575,2]
[350387194,1737821447014,-500.0,0.00016575,2]
[350387196,1737821447023,-500.0,0.00016575,2]
[350387198,1737821447033,-1223.23,0.00016575,2]
[350387200,1737821447043,-500.0,0.00016575,2]
[350387202,1737821447054,-500.0,0.00016575,2]
[350387204,1737821447063,-500.0,0.00016575,2]
[350387206,1737821447073,-710.51,0.00016575,2]
[350387208,1737821447083,-500.0,0.00016575,2]
[350387210,1737821447092,-500.0,0.00016575,2]
[350387212,1737821447102,-523.01,0.00016575,2]
[350387214,1737821447112,-507.37905175,0.00016575,2]
[350387216,1737821447122,-500.0,0.00016575,2]
[350387218,1737821447131,-6579.93,0.00016575,2]
[350387220,1737821447141,-177.33,0.00016575,2]
[350387222,1737821447150,-1391.0,0.00016575,2]
[350387224,1737821447160,-1643.6,0.00016575,2]
[350387227,1737821447170,-500.0,0.00016575,2]
[350387229,1737821447179,-312.917186,0.00016575,2]
[350387231,1737821447189,-691.57,0.00016575,2]
[350387233,1737821447198,-522.43,0.00016575,2]
[350387235,1737821447208,-500.0,0.00016575,2]
[350387237,1737821447217,-500.0,0.00016575,2]
[350387239,1737821447227,-1375.26,0.00016575,2]
[350387241,1737821447237,-569.11,0.00016575,2]
[350387243,1737821447247,-500.0,0.00016575,2]
[350387245,1737821447257,-500.0,0.00016575,2]
[350387247,1737821447267,-2316.83,0.00016575,2]
[350387249,1737821447276,-22978.71,0.00016575,2]
[350387251,1737821447286,-180.37,0.00016575,2]
[350387253,1737821447295,-500.0,0.00016575,2]
[350387255,1737821447305,-1338.38,0.00016575,2]
[350387257,1737821447315,-621.61,0.00016575,2]
[350387259,1737821447325,-500.0,0.00016575,2]
[350387261,1737821447335,-500.0,0.00016575,2]
[350387263,1737821447344,-685.94,0.00016575,2]
[350387265,1737821447353,-1504.23,0.00016575,2]
[350387267,1737821447363,-260.35929698,0.00016575,2]
[350387269,1737821447373,-1190.45,0.00016575,2]
[350387271,1737821447383,-503.39767878,0.00016575,2]
[350387273,1737821447394,-874.06,0.00016575,2]
[350387275,1737821447404,-500.0,0.00016575,2]
[350387291,1737821447532,-500.0,0.00016575,2]
[350387293,1737821447544,-584.63,0.00016575,2]
[350387295,1737821447554,-503.90126389,0.00016575,2]
[350387297,1737821447563,-720.74,0.00016575,2]
[350387299,1737821447574,-500.0,0.00016575,2]
[350387301,1737821447584,-547.43,0.00016575,2]
[350387303,1737821447594,-427.94319134,0.00016575,2]
[350387305,1737821447607,-500.0,0.00016575,2]
[350387307,1737821447616,-500.0,0.00016575,2]
[350387309,1737821447626,-500.0,0.00016575,2]
[350387312,1737821447635,-500.0,0.00016575,2]
[350387314,1737821447646,-500.0,0.00016575,2]